bitfinex-derivatives/quotes_ETHF0:USTF0_20240922
["timestamp","ask_amount","ask_price","bid_price","bid_amount"]
[1727018586721,0.7571,2573.2,2573.1,0.3833]
[1727018589219,0.7571,2573.2,2573.1,0.77191]
[1727018589421,0.3685,2573.2,2573.1,0.77191]
[1727018589621,0.38859,2573.3,2573.1,0.77191]
[1727018590017,0.38857,2573.4,2573.2,0.38859]
[1727018590520,1.12606,2573.5,2573.3,0.38858]
[1727018590715,0.38857,2573.4,2573.3,0.77688]
[1727018590915,1.12606,2573.5,2573.3,0.77688]
[1727018591117,0.75536,2573.5,2573.3,0.77688]
[1727018594316,0.75536,2573.5,2573.3,2.17688]
[1727018594623,0.38857,2573.4,2573.3,2.17688]
[1727018595027,0.38857,2573.4,2573.3,1.4]
[1727018595223,0.75536,2573.5,2573.3,1.78858]
[1727018595619,0.38857,2573.4,2573.3,1.78858]
[1727018596021,0.75536,2573.5,2573.3,1.4]
[1727018596727,0.3668,2573.5,2573.3,1.4]
[1727018596928,0.3668,2573.5,2573.4,0.38857]
[1727018597626,0.75535,2573.5,2573.4,0.38857]
[1727018598422,0.3668,2573.5,2573.3,1.4]
[1727018598627,0.3668,2573.5,2573.4,0.38857]
[1727018599931,0.3668,2573.5,2573.4,1.78857]
[1727018600123,3.05397359,2574.3,2573.4,5.2856]
[1727018600428,0.38853,2573.7,2573.5,2.17294]
[1727018600625,0.38853,2573.7,2573.6,0.38854]
[1727018600926,0.759,2573.9,2573.6,0.38854]
[1727018600927,0.38851,2573.8,2573.6,0.38854]
[1727018601826,0.38852,2573.7,2573.6,0.38854]
[1727018602030,0.759,2573.9,2573.6,0.38854]
[1727018602031,0.38852,2573.8,2573.6,0.38854]
[1727018603318,0.38854,2573.6,2573.5,0.3844]
[1727018603827,0.38855,2573.5,2573.4,1.4]
[1727018604027,0.77155,2573.5,2573.4,1.4]
[1727018604327,0.383,2573.5,2573.4,1.78857]
[1727018607220,0.77155,2573.5,2573.4,1.4]
[1727018607426,0.77155,2573.5,2573.3,3.96528]
[1727018607427,1.54895,2573.5,2573.3,3.96528]
[1727018608432,1.54895,2573.5,2573.3,3.5767]
[1727018609519,0.38857,2573.4,2573.3,3.5767]
[1727018610742,0.38861,2573.1,2573.0,6.02656053]
[1727018611027,0.38861,2573.1,2573.0,2.81196053]
[1727018611537,0.38861,2573.2,2573.0,3.68657056]
[1727018611739,1.1484,2573.1,2573.0,3.68657056]
[1727018612030,1.1484,2573.1,2573.0,3.20059053]
[1727018612229,1.1484,2573.1,2573.0,4.29406263]
[1727018612629,1.1484,2573.1,2573.0,5.64468099]
[1727018613227,0.97132,2573.7,2573.2,0.38859]
[1727018613435,0.38857,2573.4,2573.3,1.4]
[1727018613836,0.38856,2573.5,2573.3,1.78858]
[1727018614031,0.38857,2573.4,2573.3,1.78858]
[1727018614339,0.38857,2573.4,2573.3,0.38858]
[1727018614537,0.38857,2573.4,2573.2,3.41859]
[1727018615437,0.38857,2573.4,2573.2,4.43275053]
[1727018615934,0.38857,2573.5,2573.3,0.38858]
[1727018616233,0.38857,2573.5,2573.2,4.04416053]
[1727018616234,0.4012,2573.6,2573.5,0.38855]
[1727018616738,0.4012,2573.6,2573.5,2.49600614]
[1727018617033,0.4012,2573.6,2573.5,2.86880614]
[1727018617929,0.4012,2573.6,2573.5,2.8688036]
[1727018618237,0.38852,2573.8,2573.5,2.4802536]
[1727018618441,0.38852,2573.8,2573.6,3.41854]
[1727018618831,0.38852,2573.7,2573.6,3.41854]
[1727018619532,0.38852,2573.7,2573.6,3.03]
[1727018621339,0.38852,2573.7,2573.6,3.41854]
[1727018622030,0.38852,2573.7,2573.6,3.03]
[1727018623138,3.592,2573.9,2573.7,0.38852]
[1727018623431,0.38851,2573.8,2573.7,0.38852]
[1727018623933,0.3842,2573.9,2573.8,0.38851]
[1727018624139,0.3842,2573.9,2573.8,3.41851]
[1727018624525,0.3842,2573.9,2573.8,0.38851]
[1727018625339,0.3842,2573.9,2573.8,0.76281]
[1727018626238,0.77269,2573.9,2573.8,0.3743]
[1727018628831,0.38852,2573.7,2573.6,4.04416053]
[1727018630140,0.38852,2573.7,2573.6,3.03]
[1727018634440,0.38852,2573.7,2573.6,1.4]
[1727018641144,0.38852,2573.7,2573.6,1.78854]
[1727018641353,0.3842,2573.9,2573.7,0.38851]
[1727018641549,0.77269,2573.9,2573.8,1.4]
[1727018642250,0.77269,2573.9,2573.8,1.78851]
[1727018642444,0.77269,2573.9,2573.8,1.4]
[1727018651162,0.3842,2573.9,2573.8,1.78851]
[1727018652153,0.77269,2573.9,2573.8,1.78851]
[1727018652962,0.77269,2573.9,2573.8,2.15401]
[1727018653364,0.77269,2573.9,2573.8,1.7655]
[1727018657158,0.77269,2573.9,2573.8,2.15401]
[1727018658467,0.77269,2573.9,2573.8,1.7655]
[1727018660162,0.77269,2573.9,2573.8,2.15401]
[1727018660461,0.77269,2573.9,2573.8,2.77966053]
[1727018661268,0.77269,2573.9,2573.8,3.87283397]
[1727018661773,3.2078,2574.4,2573.8,7.75843397]
[1727018661958,1.15482,2574.4,2574.3,1.4]
[1727018662165,0.76302,2574.4,2574.3,1.4]
[1727018662466,0.76302,2574.4,2574.3,1.778]
[1727018663061,1.13002,2574.4,2574.3,1.778]
[1727018667466,0.38843,2574.3,2574.2,1.4]
[1727018675876,0.38843,2574.3,2573.9,5.8698]
[1727018675877,0.38848,2574.0,2573.9,7.2698]
[1727018676072,0.38848,2574.0,2573.9,7.6678]
[1727018676670,0.76798,2574.0,2573.9,7.6678]
[1727018677568,0.76798,2574.0,2573.9,5.0058]
[1727018678573,0.76798,2574.0,2573.9,5.39429]
[1727018678777,0.38847,2574.1,2573.9,5.39429]
[1727018678978,0.7988,2574.3,2573.9,5.0058]
[1727018679168,0.7988,2574.3,2574.2,1.4]
[1727018679169,0.78974,2574.3,2574.2,1.4]
[1727018679574,0.78974,2574.3,2574.2,1.7937]
[1727018680377,0.78974,2574.3,2574.2,2.18215]
[1727018680881,3.99183,2574.4,2574.2,2.18215]
[1727018681072,0.3998,2574.5,2574.3,0.38843]
[1727018681376,0.78821,2574.5,2574.4,1.4]
[1727018685671,0.7882,2574.5,2574.4,1.78842]
[1727018686171,0.7882,2574.5,2574.4,1.4]
[1727018687683,0.3884,2574.5,2574.4,1.78842]
[1727018687877,0.3884,2574.5,2574.4,1.4]
[1727018688489,0.3884,2574.5,2574.4,1.78842]
[1727018688680,0.3884,2574.6,2574.4,1.78842]
[1727018688885,0.789,2574.7,2574.4,1.78842]
[1727018688886,0.789,2574.7,2574.5,1.4]
[1727018689089,0.38839,2574.6,2574.5,1.783]
[1727018689387,0.38839,2574.6,2574.5,2.1714]
[1727018690382,0.38839,2574.6,2574.5,1.783]
[1727018691485,0.38839,2574.6,2574.5,2.1714]
[1727018691783,0.3915,2574.7,2574.6,0.38839]
[1727018691978,3.2078,2574.8,2574.6,0.38839]
[1727018692177,0.38837,2574.8,2574.7,1.4]
[1727018704996,0.3775,2574.9,2574.5,3.5908]
[1727018705180,0.38839,2574.6,2574.5,3.5908]
[1727018705384,0.38839,2574.6,2574.5,4.9908]
[1727018705591,0.78889,2574.6,2574.5,4.9908]
[1727018710297,0.38839,2574.6,2574.5,4.9908]
[1727018710592,0.38839,2574.6,2574.5,5.3792]
[1727018711490,0.38839,2574.6,2574.5,4.9908]
[1727018712588,0.38839,2574.6,2574.5,1.783]
[1727018718885,0.38842,2574.4,2574.3,1.01416053]
[1727018719087,1.35947,2574.4,2574.3,1.4]
[1727018719286,0.38842,2574.4,2574.3,1.4]
[1727018724892,1.35947,2574.4,2574.3,1.4]
[1727018725198,5.24427,2574.4,2574.3,1.4]
[1727018727204,1.35947,2574.4,2574.3,1.4]
[1727018727406,5.24427,2574.4,2574.3,1.4]
[1727018731193,0.38842,2574.4,2574.3,1.4]
[1727018731591,0.38843,2574.3,2574.2,0.3849]
[1727018731810,0.38843,2574.3,2574.2,1.7849]
[1727018734907,0.38843,2574.3,2574.2,1.4]
[1727018742602,0.38845,2574.2,2574.1,1.7937]
[1727018742811,0.4019,2574.2,2573.8,1.01416053]
[1727018743006,0.38851,2573.8,2573.7,1.7834]
[1727018743306,1.35978,2573.8,2573.7,1.7834]
[1727018743500,1.76168,2573.8,2573.7,1.7834]
[1727018743811,0.79041,2573.8,2573.7,1.7834]
[1727018747106,0.79041,2573.8,2573.7,1.4]
[1727018754712,0.38852,2573.7,2573.6,0.3813]
[1727018754914,1.17472,2573.7,2573.6,0.3813]
[1727018755312,0.38857,2573.4,2573.3,2.2509]
[1727018755519,0.38857,2573.4,2573.3,2.1762]
[1727018756011,1.75751,2573.7,2573.3,2.1762]
[1727018756314,0.38857,2573.4,2573.3,2.1762]
[1727018757214,0.38855,2573.5,2573.3,2.1762]
[1727018757413,0.7862,2573.7,2573.4,1.4]
[1727018757615,1.17472,2573.7,2573.6,1.4]
[1727018760115,2.14603,2573.7,2573.6,1.4]
[1727018764321,0.38854,2573.6,2573.5,1.4]
[1727018767522,0.38854,2573.6,2573.3,0.7762]
[1727018767523,0.38857,2573.4,2573.3,2.1762]
[1727018769522,0.7862,2573.7,2573.3,2.1762]
[1727018769722,0.38855,2573.6,2573.3,0.7762]
[1727018770226,0.38855,2573.6,2573.3,1.16477]
[1727018770426,0.38855,2573.6,2573.3,1.56577]
[1727018771030,0.38855,2573.6,2573.4,0.38857]
[1727018771322,0.38854,2573.6,2573.5,1.4]
[1727018771720,0.7597,2574.0,2573.6,0.38854]
[1727018772027,0.38852,2573.7,2573.6,0.3884]
[1727018773331,0.38852,2573.8,2573.6,0.77693]
[1727018773522,0.38851,2573.8,2573.7,0.3879]
[1727018775525,0.38848,2574.0,2573.8,0.3885]
[1727018775723,0.38848,2574.0,2573.9,1.793]
[1727018787438,0.3687,2574.1,2573.9,1.793]
[1727018787735,0.75717,2574.1,2573.9,2.18149]
[1727018788522,0.38848,2574.0,2573.9,2.18149]
[1727018788945,0.38848,2574.0,2573.9,1.793]
[1727018795641,0.78928,2574.0,2573.9,0.393]
[1727018795834,0.4008,2574.0,2573.7,0.38852]
[1727018796029,0.3885,2573.9,2573.7,0.38852]
[1727018796251,0.3931,2573.8,2573.7,0.38852]
[1727018796536,0.38852,2573.7,2573.6,1.78853]
[1727018796746,0.78722,2573.7,2573.6,1.78853]
[1727018802941,0.78722,2573.7,2573.6,1.4]
[1727018803140,0.3987,2573.7,2573.6,1.78854]
[1727018804444,0.78722,2573.7,2573.6,1.78854]
[1727018805151,0.78722,2573.7,2573.6,1.4]
[1727018807644,0.78722,2573.7,2573.5,0.3851]
[1727018807847,0.38855,2573.5,2573.4,1.4]
[1727018809444,0.38855,2573.5,2573.4,1.7655]
[1727018809843,0.76914,2573.6,2573.4,2.15406]
[1727018810052,0.76914,2573.6,2573.5,1.4]
[1727018813345,0.38854,2573.6,2573.5,1.4]
[1727018813659,0.38854,2573.6,2573.5,1.7841]
[1727018814454,0.38854,2573.6,2573.5,2.17265]
[1727018815152,0.38854,2573.6,2573.5,1.7841]
[1727018815647,0.38854,2573.6,2573.5,2.17265]
[1727018816550,0.38854,2573.6,2573.5,1.7841]
[1727018817146,0.38854,2573.6,2573.5,1.4]
[1727018817547,0.38854,2573.6,2573.5,1.78855]
[1727018818647,1.36439,2573.8,2573.5,1.78855]
[1727018818848,0.38852,2573.7,2573.5,1.78855]
[1727018819647,0.38854,2573.6,2573.5,1.78855]
[1727018819849,0.38853,2573.7,2573.5,1.78855]
[1727018820456,0.38853,2573.7,2573.6,0.38854]
[1727018820649,0.38853,2573.7,2573.5,1.78855]
[1727018821953,0.38854,2573.6,2573.5,1.4]
[1727018823859,0.38855,2573.5,2573.4,1.37291832]
[1727018824063,0.38855,2573.5,2573.4,0.3655]
[1727018824064,1.14305,2573.5,2573.4,0.3655]
[1727018824259,1.14305,2573.5,2573.3,1.00741832]
[1727018824260,0.38857,2573.4,2573.2,2.79600832]
[1727018824558,0.79267,2573.4,2573.2,2.79600832]
[1727018824753,0.4041,2573.4,2573.3,0.38858]
[1727018825363,0.3801,2573.5,2573.4,0.38857]
[1727018825568,0.3801,2573.5,2573.4,1.78857]
[1727018825862,0.3801,2573.5,2573.4,2.17267]
[1727018826060,0.7785,2573.7,2573.4,2.17267]
[1727018826362,1.147,2573.7,2573.4,2.17267]
[1727018827557,0.38854,2573.6,2573.4,2.17267]
[1727018828265,0.79263,2573.7,2573.5,0.38855]
[1727018828461,0.79262,2573.7,2573.6,1.78854]
[1727018828654,0.79262,2573.7,2573.6,1.4]
[1727018830263,0.79262,2573.7,2573.6,1.78854]
[1727018831557,0.79262,2573.7,2573.6,1.4]
[1727018834559,0.79262,2573.7,2573.6,1.78854]
[1727018835168,0.79262,2573.7,2573.6,1.4]
[1727018835465,0.4041,2573.7,2573.4,3.18008832]
[1727018835667,0.781,2573.6,2573.4,3.18008832]
[1727018835864,0.38855,2573.5,2573.4,2.79151832]
[1727018836161,1.16955,2573.6,2573.4,4.27340929]
[1727018836363,1.16955,2573.6,2573.4,3.18008832]
[1727018837272,0.38855,2573.5,2573.4,3.18008832]
[1727018837470,0.38855,2573.5,2573.4,4.27341028]
[1727018837667,0.38855,2573.5,2573.4,3.88484028]
[1727018838961,0.38855,2573.5,2573.4,4.27341028]
[1727018839163,0.38855,2573.5,2573.4,3.88484028]
[1727018839460,0.38855,2573.5,2573.4,5.79776488]
[1727018839664,0.38855,2573.5,2573.4,5.79774138]
[1727018839865,0.38855,2573.5,2573.4,3.88484028]
[1727018840266,0.4041,2573.7,2573.4,9.11870071]
[1727018840571,0.79263,2573.7,2573.6,1.78854]
[1727018841467,0.79263,2573.7,2573.6,2.27443446]
[1727018841662,0.79263,2573.7,2573.6,1.88589446]
[1727018843474,0.79263,2573.7,2573.6,2.27443446]
[1727018843677,0.4041,2573.7,2573.6,2.27443446]
[1727018843973,3.2078,2574.2,2573.6,13.24858626]
[1727018844270,0.38848,2574.0,2573.8,1.39729824]
[1727018844870,0.38848,2574.0,2573.9,1.4]
[1727018847571,0.38849,2573.9,2573.8,2.40879824]
[1727018847767,0.3675,2573.9,2573.8,2.27436241]
[1727018848175,0.75599,2573.9,2573.8,1.4]
[1727018848373,0.3675,2573.9,2573.8,1.78851]
[1727018848674,0.3675,2573.9,2573.8,2.27437094]
[1727018849581,0.75599,2573.9,2573.8,2.27437094]
[1727018850270,0.75599,2573.9,2573.8,1.78851]
[1727018850466,0.75599,2573.9,2573.8,2.27436208]
[1727018850870,0.75599,2573.9,2573.8,1.78851]
[1727018851072,0.75599,2573.9,2573.8,1.4]
[1727018852477,0.75599,2573.9,2573.8,1.78851]
[1727018852679,0.3675,2573.9,2573.8,1.4]
[1727018852981,0.3675,2573.9,2573.8,1.78851]
[1727018853375,0.75599,2573.9,2573.8,1.4]
[1727018854076,0.75599,2573.9,2573.8,1.78851]
[1727018855183,0.3675,2573.9,2573.8,1.78851]
[1727018855787,0.75599,2573.9,2573.8,1.78851]
[1727018856178,0.75599,2573.9,2573.8,1.4]
[1727018857995,0.38853,2573.7,2573.5,2.79733824]
[1727018858184,0.3675,2573.9,2573.5,2.79733824]
[1727018858185,0.7518,2573.6,2573.5,1.7755]
[1727018858787,0.7518,2573.6,2573.5,2.16405]
[1727018859590,0.7518,2573.6,2573.5,3.23799667]
[1727018859797,1.14034,2573.6,2573.5,2.84944667]
[1727018860698,1.14034,2573.6,2573.5,3.94256209]
[1727018860898,1.14034,2573.6,2573.5,2.47394667]
[1727018861098,1.14034,2573.6,2573.5,3.08115396]
[1727018861595,5.02594,2573.6,2573.5,2.16705698]
[1727018861800,5.02594,2573.6,2573.5,1.07394667]
[1727018862697,5.02594,2573.6,2573.5,0.48589742]
[1727018862897,0.38857,2573.4,2573.3,1.4]
[1727018863195,0.38857,2573.4,2573.3,2.00673697]
[1727018863394,0.38857,2573.4,2573.3,2.49267537]
[1727018864089,0.38857,2573.4,2573.3,1.4]
[1727018864295,0.38857,2573.4,2573.3,2.00668709]
[1727018864496,0.38857,2573.4,2573.3,2.49262438]
[1727018866607,0.38857,2573.4,2573.3,2.49335924]
[1727018867095,0.38857,2573.4,2573.3,2.00742195]
[1727018867401,0.38857,2573.4,2573.3,1.88594428]
[1727018867591,0.38857,2573.4,2573.3,2.00742574]
[1727018870813,0.38857,2573.4,2573.3,1.4]
[1727018871099,0.38857,2573.4,2573.3,2.0074274]
[1727018872299,0.38857,2573.4,2573.3,2.3960074]
[1727018872497,1.72317,2573.6,2573.4,0.38856]
[1727018872498,0.38855,2573.5,2573.4,0.38856]
[1727018872702,0.38855,2573.5,2573.4,2.3959874]
[1727018872900,0.38855,2573.5,2573.4,2.0074274]
[1727018874209,0.38855,2573.5,2573.4,1.4]
[1727018874504,0.38855,2573.5,2573.4,2.00740476]
[1727018875101,0.38855,2573.5,2573.4,1.4]
[1727018875409,0.38855,2573.5,2573.4,1.78857]
[1727018875705,0.38855,2573.5,2573.4,2.00741408]
[1727018876312,0.38855,2573.5,2573.4,2.39598306]
[1727018876807,0.38855,2573.5,2573.4,1.78857]
[1727018877105,0.38855,2573.5,2573.4,2.3959808]
[1727018877307,0.38855,2573.5,2573.4,1.78857]
[1727018879912,0.38855,2573.5,2573.4,1.4]
[1727018880609,0.38855,2573.5,2573.4,1.78857]
[1727018881006,0.7518,2573.6,2573.4,1.78857]
[1727018882205,0.38855,2573.5,2573.4,1.4]
[1727018882406,0.38855,2573.5,2573.4,2.00740905]
[1727018883003,0.38855,2573.5,2573.4,1.4]
[1727018890910,0.3729,2573.6,2573.5,0.38855]
[1727018891106,0.38855,2573.5,2573.4,1.7876]
[1727018891413,0.38855,2573.5,2573.4,2.78356139]
[1727018892418,0.38855,2573.5,2573.4,2.39499139]
[1727018893420,0.77805,2573.5,2573.4,2.39499139]
[1727018894112,0.77805,2573.5,2573.4,2.00739139]
[1727018895214,1.15735,2573.5,2573.4,2.00739139]
[1727018897921,1.15735,2573.5,2573.4,0.60739139]
[1727018898617,0.38857,2573.4,2573.3,1.7806]
[1727018898819,0.38857,2573.4,2573.3,2.38804156]
[1727018899020,0.38857,2573.4,2573.3,2.87399134]
[1727018899218,0.38857,2573.4,2573.3,2.77662156]
[1727018899417,0.38857,2573.4,2573.3,4.23447594]
[1727018899618,0.38857,2573.4,2573.3,4.23447046]
[1727018899817,0.38857,2573.4,2573.3,2.87399302]
[1727018900017,0.38857,2573.4,2573.3,3.26257302]
[1727018900219,0.38857,2573.4,2573.3,4.84190465]
[1727018900524,0.38857,2573.4,2573.3,4.84190207]
[1727018901226,0.38857,2573.4,2573.3,4.45332207]
[1727018902427,1.15736,2573.5,2573.3,4.84190207]
[1727018902621,0.3793,2573.5,2573.4,3.06128346]
[1727018906821,0.76785,2573.5,2573.4,3.06128346]
[1727018907026,1.16025,2573.5,2573.4,3.06128346]
[1727018908428,0.7717,2573.5,2573.4,3.06128346]
[1727018908623,0.7717,2573.5,2573.4,4.0700817]
[1727018908925,1.16025,2573.5,2573.4,3.6815117]
[1727018909130,1.16025,2573.5,2573.4,2.67271346]
[1727018909626,0.7717,2573.5,2573.4,3.06128346]
[1727018909826,0.7717,2573.5,2573.4,4.0700817]
[1727018910036,1.16025,2573.5,2573.4,4.0700817]
[1727018910236,1.16025,2573.5,2573.4,3.06128346]
[1727018910531,1.16025,2573.5,2573.4,3.6815117]
[1727018910730,0.7717,2573.5,2573.4,3.06128346]
[1727018911234,1.16025,2573.5,2573.4,2.67271346]
[1727018911544,1.16025,2573.5,2573.4,2.67275354]
[1727018911928,1.16025,2573.5,2573.4,2.67274583]
[1727018912231,0.7717,2573.5,2573.4,3.06131583]
[1727018912424,0.7717,2573.5,2573.4,4.07011407]
[1727018913836,0.7717,2573.5,2573.4,3.46267332]
[1727018914034,3.30770043,2573.6,2573.4,3.58412859]
[1727018914333,3.30770043,2573.6,2573.4,2.27769362]
[1727018914534,2.91916043,2573.6,2573.5,0.60740006]
[1727018914739,2.91916043,2573.6,2573.5,1.60334954]
[1727018914740,0.3729,2573.6,2573.5,1.60334954]
[1727018915038,0.3729,2573.6,2573.5,2.57518871]
[1727018915731,3.72198043,2573.8,2573.6,0.38854]
[1727018916032,3.72198043,2573.8,2573.7,0.98040006]
[1727018917337,3.72198043,2573.8,2573.7,0.373]
[1727018917532,3.72198043,2573.8,2573.7,0.98037905]
[1727018918234,3.72197043,2573.8,2573.7,1.58775796]
[1727018919636,1.17571,2573.8,2573.7,1.58775796]
[1727018920440,1.17571,2573.8,2573.7,0.98037905]
[1727018920632,0.7872,2573.8,2573.7,1.97626825]
[1727018923443,0.7872,2573.8,2573.7,2.7688892]
[1727018923739,0.3913,2573.8,2573.7,2.16152]
[1727018923945,0.3913,2573.8,2573.7,2.76888059]
[1727018927045,0.3913,2573.8,2573.7,2.16152]
[1727018927646,0.3913,2573.8,2573.7,2.76886804]
[1727018930644,0.3913,2573.8,2573.7,2.16152]
[1727018930843,0.3913,2573.8,2573.7,2.76886301]
[1727018931139,0.3913,2573.8,2573.7,2.76886302]
[1727018934144,0.3913,2573.8,2573.7,2.16152]
[1727018934344,0.3913,2573.8,2573.7,2.76886576]
[1727018937738,0.3913,2573.8,2573.7,2.16152]
[1727018938137,0.3913,2573.8,2573.7,2.76886139]
[1727018939549,0.3913,2573.8,2573.7,2.76886361]
[1727018940744,0.3913,2573.8,2573.7,2.76886311]
[1727018941254,0.3913,2573.8,2573.7,2.16152]
[1727018941446,0.3913,2573.8,2573.7,2.76886347]
[1727018943454,0.3913,2573.8,2573.7,2.16152]
[1727018943644,0.3913,2573.8,2573.7,2.76886016]
[1727018946560,0.3929,2573.9,2573.8,0.38851]
[1727018946857,4.40575,2574.2,2574.0,0.38848]
[1727018947153,0.3851,2574.1,2574.0,0.38848]
[1727018947358,0.3851,2574.1,2574.0,0.99578296]
[1727018948358,0.3851,2574.1,2574.0,0.38848]
[1727018948558,0.3851,2574.1,2574.0,0.99578342]
[1727018948754,0.3851,2574.1,2574.0,0.38848]
[1727018949252,0.3851,2574.1,2574.0,0.9957791]
[1727018949561,0.3851,2574.1,2574.0,0.38848]
[1727018949952,0.77356,2574.1,2573.9,0.38849]
[1727018951960,0.3851,2574.1,2574.0,0.38848]
[1727018953362,0.77356,2574.1,2574.0,0.38848]
[1727018953662,0.77356,2574.1,2573.9,0.38848]
[1727018956261,0.77356,2574.1,2574.0,0.38848]
[1727018956262,0.3851,2574.1,2574.0,0.38848]
[1727018957458,0.77356,2574.1,2574.0,0.38848]
[1727018958153,0.77356,2574.1,2573.9,0.38848]
[1727018958355,0.38848,2574.0,2573.8,1.8019]
[1727018958566,0.38848,2574.0,2573.9,0.6073076]
[1727018958962,0.3851,2574.1,2573.9,0.9957976]
[1727018958963,0.77357,2574.1,2573.9,0.9957976]
[1727018959265,0.77357,2574.1,2573.9,0.38849]
[1727018961265,0.77357,2574.1,2574.0,0.60730814]
[1727018963359,0.38849,2573.9,2573.8,1.78851]
[1727018963565,0.38849,2573.9,2573.8,2.88169393]
[1727018964364,0.38849,2573.9,2573.8,3.36755231]
[1727018964564,0.38849,2573.9,2573.8,2.39583396]
[1727018964761,0.38849,2573.9,2573.8,2.88169313]
[1727018965367,0.38849,2573.9,2573.8,3.85341876]
[1727018965552,0.38849,2573.9,2573.8,4.46074267]
[1727018965865,0.38849,2573.9,2573.8,2.88169313]
[1727018966258,0.38849,2573.9,2573.8,4.46073853]
[1727018966659,0.38849,2574.0,2573.8,4.46073853]
[1727018966859,0.77357,2574.1,2573.9,0.99580396]
[1727018967055,0.77356,2574.1,2574.0,0.99580396]
[1727018967858,0.3851,2574.1,2574.0,0.99580396]
[1727018968667,3.2078,2574.2,2574.0,0.99580396]
[1727018968964,0.38846,2574.1,2574.0,0.38848]
[1727018969266,0.38846,2574.1,2574.0,0.9957839]
[1727018970266,3.2078,2574.2,2574.1,0.38846]
[1727018970463,3.2078,2574.2,2574.1,0.9957639]
[1727018970663,3.2078,2574.2,2574.1,1.3654639]
[1727018970860,0.3828,2574.3,2574.2,0.38845]
[1727018971063,0.3828,2574.3,2574.2,2.3957539]
[1727018971464,0.3828,2574.3,2574.2,6.2804783]
[1727018971863,0.3828,2574.3,2574.2,2.3956783]
[1727018972467,0.3828,2574.3,2574.2,1.78845]
[1727018973165,0.3828,2574.3,2574.2,2.39567682]
[1727018973367,0.3828,2574.3,2574.2,1.78845]
[1727018975271,0.3828,2574.3,2574.2,5.67325]
[1727018978074,0.3828,2574.3,2574.2,1.78845]
[1727018985477,0.3828,2574.3,2574.2,2.78667787]
[1727018985674,0.3828,2574.3,2574.2,2.17945]
[1727018988281,0.3828,2574.3,2574.2,2.78668191]
[1727018991377,0.3828,2574.3,2574.2,0.60723191]
[1727018991378,0.77123,2574.3,2574.2,0.60723191]
[1727018991582,0.38848,2574.0,2573.9,3.19317824]
[1727018991785,0.38848,2574.0,2573.9,2.06475722]
[1727018992082,0.38848,2574.0,2573.9,0.60727933]
[1727018992283,0.38848,2574.0,2573.9,1.09312713]
[1727018992482,0.38848,2574.0,2573.9,0.60727933]
[1727018992878,1.13098,2574.0,2573.9,1.09312627]
[1727018993379,1.13098,2574.0,2573.9,4.07210666]
[1727018993584,1.13098,2574.0,2573.9,4.07210828]
[1727018993773,1.13098,2574.0,2573.9,2.49312627]
[1727018994282,1.13098,2574.0,2573.9,3.46481338]
[1727018994480,1.13098,2574.0,2573.9,2.49312627]
[1727018994782,1.13098,2574.0,2573.9,4.07210391]
[1727018994979,1.13098,2574.0,2573.9,3.46480482]
[1727018995684,1.13098,2574.0,2573.9,4.07210422]
[1727018995876,0.7425,2574.0,2573.9,3.85329482]
[1727018996078,0.7425,2574.0,2573.9,4.07209419]
[1727018996377,0.7425,2574.0,2573.9,4.46049419]
[1727018996575,1.13098,2574.0,2573.9,4.46049419]
[1727018996873,1.13098,2574.0,2573.9,3.39145641]
[1727018997073,1.13098,2574.0,2573.9,4.36309967]
[1727018997279,1.13098,2574.0,2573.9,4.8489213]
[1727018997980,1.13098,2574.0,2573.9,4.4604313]
[1727018999591,1.13098,2574.0,2573.9,4.8489213]
[1727019000182,1.13098,2574.0,2573.9,5.85771954]
[1727019000183,0.7425,2574.0,2573.9,5.85771954]
[1727019000380,0.7425,2574.0,2573.9,4.27878691]
[1727019000579,0.7425,2574.0,2573.9,5.37186247]
[1727019000787,0.3761,2574.0,2573.9,5.85767896]
[1727019001085,0.38844,2574.3,2574.1,0.38845]
[1727019001290,1.1437,2574.4,2574.2,2.00727062]
[1727019001482,1.1437,2574.4,2574.2,1.78844]
[1727019001687,3.68996043,2574.4,2574.2,1.78844]
[1727019001882,4.07838043,2574.4,2574.2,1.78844]
[1727019002090,1.53212,2574.4,2574.2,1.78844]
[1727019003388,4.07838043,2574.4,2574.2,1.78844]
[1727019004284,3.68996043,2574.4,2574.1,0.38845]
[1727019004482,3.68996043,2574.4,2574.2,0.6072365]
[1727019004483,0.38843,2574.3,2574.2,0.6072365]
[1727019005587,0.38845,2574.2,2574.1,1.4]
[1727019005791,0.38845,2574.2,2574.1,2.39572448]
[1727019006189,0.38845,2574.2,2574.1,2.00726448]
[1727019007679,0.38845,2574.2,2574.1,2.39572448]
[1727019007884,0.38845,2574.2,2574.1,2.00726448]
[1727019008079,0.38845,2574.2,2574.1,2.39572448]
[1727019009090,0.38844,2574.3,2574.1,2.39572448]
[1727019009290,0.38844,2574.3,2574.2,0.60726448]
[1727019009484,0.38844,2574.3,2574.2,0.97646448]
[1727019009681,0.38844,2574.3,2574.2,0.3692]
[1727019009885,0.38844,2574.3,2574.2,0.97643932]
[1727019010893,0.38844,2574.3,2574.2,1.36488932]
[1727019011491,3.68996043,2574.4,2574.3,0.38843]
[1727019011694,0.372,2574.4,2574.3,0.99566932]
[1727019012192,0.372,2574.4,2574.3,1.8843237]
[1727019012388,0.372,2574.4,2574.3,1.39856932]
[1727019012989,0.372,2574.4,2574.3,0.79133]
[1727019013199,0.372,2574.4,2574.3,1.39853973]
[1727019014299,0.76042,2574.4,2574.3,1.01010973]
[1727019014487,0.76042,2574.4,2574.3,2.41010973]
[1727019014690,0.76042,2574.4,2574.3,2.79853973]
[1727019014887,0.76042,2574.4,2574.3,2.00720973]